fUSD/lending_fUSD_20260322
["ID","MTS","AMOUNT","RATE_DAILY","PERIOD"]
[408705801,1774159843634,-438.90365876,0.00015377,2]
[408705802,1774159843645,-2466.0,0.00015386,2]
[408705803,1774159843655,-6008.0,0.00015386,2]
[408705804,1774159843666,-3760.0,0.00015386,2]
[408705805,1774159843678,-433.0,0.00015388,2]
[408705806,1774159843688,-2900.0,0.000154,5]
[408705807,1774159843700,-1200.0,0.000154,5]
[408705808,1774159843711,-800.0,0.00015452,2]
[408705809,1774159843723,-500.0,0.00015468,2]
[408705810,1774159843734,-1000.0,0.00015468,2]
[408705811,1774159843745,-1000.0,0.00015468,2]
[408705812,1774159843756,-501.4021552,0.00015468,2]
[408705813,1774159843767,-713.64434561,0.00015468,2]
[408705814,1774159843778,-156.45,0.00015471,2]
[408705815,1774159843789,-1011.85287966,0.00015482,2]
[408705816,1774159843800,-834.34,0.000155,2]
[408705817,1774159843811,-3800.0,0.000155,5]
[408705818,1774159843823,-1600.0,0.000155,5]
[408705819,1774159843834,-751.53,0.000155,2]
[408705820,1774159843844,-187.45,0.00015506,2]
[408705821,1774159843855,-4000.0,0.00015507,2]
[408705822,1774159843866,-168.0,0.00015527,2]
[408705823,1774159843877,-1500.0,0.00015563,2]
[408705824,1774159843887,-1994.741,0.0001557,2]
[408705825,1774159843898,-180.67002713,0.0001557,2]
[408705826,1774159843911,-180.43,0.00015571,30]
[408705827,1774159843924,-180.43,0.00015571,30]
[408705828,1774159843935,-180.43,0.00015571,30]
[408705829,1774159843946,-2223.60184221,0.00015575,2]
[408705830,1774159843958,-2000.0,0.0001558,2]
[408705831,1774159843970,-3177.9463414,0.0001558,2]
[408705832,1774159843981,-212.72,0.000156,2]
[408705833,1774159843994,-1264.97,0.000156,2]
[408705834,1774159844005,-1311.24,0.000156,2]
[408705835,1774159844017,-4800.0,0.000156,5]
[408705836,1774159844029,-2000.0,0.000156,5]
[408705837,1774159844041,-438.88,0.00015627,2]
[408705838,1774159844051,-780.0,0.0001568,2]
[408705839,1774159844060,-874.787377,0.0001568,2]
[408705840,1774159844494,-61.11176816,0.0001568,2]
[408705841,1774159844538,-332.183122,0.00014214,7]
[408705842,1774159844548,-205.65993177,0.000149,2]
[408705843,1774159844558,-761.85804903,0.0001568,2]
[408705844,1774159844567,-700.4038937,0.00015683,2]
[408705845,1774159844579,-71.7421783,0.00015683,2]
[408705846,1774159844588,-772.146072,0.00015683,2]
[408705847,1774159844597,-772.146072,0.00015683,2]
[408705848,1774159844607,-772.146072,0.00015683,2]
[408705849,1774159844616,-38.13599561,0.00015683,2]
[408705852,1774159846261,-502.0,0.00015683,2]
[408705857,1774159846665,-503.86400439,0.00015683,2]
[408705859,1774159846674,-3514.0,0.00015683,2]
[408705861,1774159846683,-621.0,0.00015683,2]
[408705863,1774159846692,-1345.0,0.00015683,2]
[408705864,1774159846702,-1261.0,0.00015683,2]
[408705865,1774159846711,-900.0,0.000157,5]
[408705867,1774159846721,-400.0,0.000157,5]
[408705869,1774159846731,-2351.0,0.000157,2]
[408705871,1774159846740,-700.0,0.00015726,2]
[408705873,1774159846750,-700.0,0.00015726,2]
[408705875,1774159846759,-458.17,0.00015753,2]
[408705877,1774159846768,-507.38415973,0.0001576,2]
[408705879,1774159846779,-1311.85672967,0.0001576,2]
[408705881,1774159846788,-265.605188,0.00015782,2]
[408705883,1774159846797,-265.605188,0.00015782,2]
[408705885,1774159846807,-265.605188,0.00015782,2]
[408705887,1774159846816,-265.605188,0.00015782,2]
[408705889,1774159846826,-151.0,0.00015782,2]
[408705890,1774159846835,-151.0,0.00015782,2]
[408705891,1774159846845,-151.0,0.00015782,2]
[408705892,1774159846855,-2.14749686,0.00015782,2]
[408705893,1774159943964,775.0,0.00012345,2]
[408705894,1774159985273,160.0,0.00012589,2]
[408705895,1774159995987,500.0,0.000125,2]
[408705896,1774159997556,1500.0,0.00012345,2]
[408705897,1774160021397,156.0,6.289e-05,2]
[408705898,1774160021913,156.0,6.289e-05,2]
[408705899,1774160107817,9572.91,0.00012345,2]
[408705900,1774160121832,-164.0,0.00012589,2]
[408705901,1774160121860,-164.0,0.00012589,2]
[408705902,1774160121887,-164.0,0.00012589,2]
[408705903,1774160121913,-164.0,0.00012589,2]
[408705904,1774160164733,162.0,0.00012589,2]
[408705905,1774160226985,162.0,0.00012589,2]
[408705906,1774160418966,161.83,0.00012246,2]
[408705907,1774160433789,-158.0,0.00012589,2]
[408705908,1774160433816,-158.0,0.00012589,2]
[408705909,1774160441006,4368.01,0.0001196,2]
[408705910,1774160441030,1001.27,0.0001196,2]
[408705911,1774160469549,200.0,0.000125,4]
[408705912,1774160470313,150.0,0.00011982,2]
[408705913,1774160508571,698.79,0.000124,2]
[408705914,1774160532273,8414.64,0.00011924,2]
[408705915,1774160561436,2341.04,0.00011939,2]
[408705916,1774160578692,239.79642034,0.00012573,2]
[408705917,1774160646026,2000.0,0.00011895,2]
[408705918,1774160683344,269.6781143,0.00012589,2]
[408705920,1774160704818,1980.65,0.00011925,2]
[408705921,1774160783141,749.6818857,8e-05,2]
[408705922,1774160783165,4684.07263368,8e-05,2]
[408705923,1774160785504,-158.0,0.00012589,2]
[408705924,1774160785532,-162.0,0.00012589,2]
[408705925,1774160785560,-162.0,0.00012589,2]
[408705926,1774160792771,1852.42,0.00011963,2]
[408705995,1774160800296,-5000.0,0.00012591,2]
[408706451,1774160825216,163.0,0.00012592,2]
[408706452,1774160837907,1300.0,0.000125,4]
[408706453,1774160850288,8537.01,0.00011928,2]
[408706454,1774160850310,10000.01,0.00011928,2]
[408706455,1774160850333,10000.01,0.00011928,2]
[408706456,1774160850356,10000.01,0.00011928,2]
[408706457,1774160850378,10000.01,0.00011928,2]
[408706458,1774160850402,10000.01,0.00011928,2]
[408706459,1774160850426,10000.01,0.00011928,2]
[408706460,1774160857221,261.32880176,0.000101,2]
[408706461,1774160868598,-1856.82730841,0.00011928,2]
[408706462,1774160868711,-10000.01,0.00011928,2]
[408706463,1774160868812,-10000.01,0.00011928,2]
[408706464,1774160868943,-10000.01,0.00011928,2]
[408706465,1774160869048,-10000.01,0.00011928,2]
[408706466,1774160869148,-10000.01,0.00011928,2]
[408706467,1774160869282,-10000.01,0.00011928,2]
[408706468,1774160869410,-10000.01,0.00011928,2]
[408706469,1774160871437,-10000.01,0.00011928,2]
[408706470,1774160871534,-10000.01,0.00011928,2]
[408706471,1774160871633,-10000.01,0.00011928,2]
[408706472,1774160882338,1110.0,0.00011868,2]
[408706473,1774160884760,3890.01,0.000104,5]
[408706474,1774160884782,1642.99,0.000104,5]
[408706475,1774160885017,3357.02,0.000102,3]
[408706476,1774160885041,2175.98,0.000102,3]
[408706477,1774160885247,2824.03,0.0001,2]
[408706478,1774160885272,5000.01,0.0001,2]
[408706479,1774160885294,5000.01,0.0001,2]
[408706480,1774160885316,772.83562685,0.0001,2]
[408706481,1774160885339,1034.16442861,0.0001,2]
[408706482,1774160885362,1034.16442861,0.0001,2]
[408706483,1774160885386,1034.16442861,0.0001,2]
[408706484,1774160885409,1034.16442861,0.0001,2]
[408706485,1774160885430,1034.16442861,0.0001,2]
[408706486,1774160885452,1034.16442861,0.0001,2]
[408706487,1774160885474,723.12780149,0.0001,2]
[408706488,1774160886784,-300.0,0.00011927,2]
[408706489,1774160886981,-589.14291018,0.00011928,2]
[408706490,1774160887007,-1065.99,0.00011928,2]
[408706491,1774160887037,-168.0,0.00011928,3]
[408706492,1774160887141,-5753.74417964,0.00011928,2]
[408706493,1774160895871,-3436.76148805,0.00011928,2]
[408706494,1774160895896,-3126.4870239,0.00011928,2]
[408706495,1774160906922,1380.51,0.0001191,2]
[408706496,1774160909542,3619.5,0.00012429,2]
[408706497,1774160909563,1357.196649,0.00012429,2]
[408706498,1774160910087,303.28849393,0.00011866,2]
[408706499,1774160914374,-159.86428022,0.00012492,2]
[408706500,1774160916111,5533.0,0.000104,5]
[408706501,1774160916440,4147.28143956,0.000102,3]
[408706502,1774160916463,1385.71856044,0.000102,3]
[408706503,1774160916695,8614.29143956,0.0001,2]
[408706504,1774160916721,10000.01,0.0001,2]
[408706505,1774160916745,10000.01,0.0001,2]
[408706506,1774160916768,1731.68856044,0.0001,2]
[408706507,1774160931903,-309.46674352,0.000125,2]
[408706508,1774160931924,-159.86428021,0.00012546,2]
[408706509,1774160931945,-300.0,0.00012592,2]
[408706510,1774160931969,-250.0,0.00012595,2]
[408706511,1774160931991,-2600.0,0.000126,4]
[408706512,1774160932012,-300.0,0.000126,4]
[408706513,1774160932032,-159.86428021,0.000126,2]
[408706514,1774160932053,-1200.0,0.00012606,2]
[408706515,1774160932073,-4720.80469606,0.00012607,2]
[408706516,1774160933994,-279.19530394,0.00012607,2]
[408706517,1774160934015,-300.30570177,0.00012627,2]
[408706518,1774160934035,-303.96232386,0.0001263,2]
[408706519,1774160934055,-287.0,0.00012647,2]
[408706520,1774160934076,-1200.0,0.00012696,2]
[408706521,1774160934101,-300.0,0.00012696,2]
[408706522,1774160934121,-150.0,0.000127,2]
[408706523,1774160934143,-7179.53667043,0.000127,2]
[408706524,1774160934732,-10000.0,0.000127,2]
[408706525,1774160935062,-10000.0,0.000127,2]
[408706526,1774160935565,-10000.0,0.000127,2]
[408706527,1774160936077,-10000.0,0.000127,2]
[408706528,1774160936403,-10000.0,0.000127,2]
[408706529,1774160936762,-10000.0,0.000127,2]
[408706530,1774160937081,-10000.0,0.000127,2]
[408706531,1774160937463,-10000.0,0.000127,2]
[408706532,1774160937687,5000.01,9.5e-05,3]
[408706533,1774160937710,5000.01,9.5e-05,3]
[408706534,1774160937736,8268.32143956,9.5e-05,3]
[408706535,1774160937759,10000.01,9.5e-05,3]
[408706536,1774160937783,10000.01,9.5e-05,3]
[408706537,1774160937807,311.03662712,9.5e-05,3]
[408706538,1774160937830,1034.16442861,9.5e-05,3]
[408706539,1774160937853,1034.16442861,9.5e-05,3]
[408706540,1774160937885,-10000.0,9.5e-05,3]
[408706541,1774160938175,-10000.0,9.5e-05,3]
[408706542,1774160938525,-10000.0,9.5e-05,3]
[408706543,1774160939082,-10000.0,9.5e-05,3]
[408706544,1774160939398,-10000.0,9.5e-05,3]
[408706545,1774160939805,-10000.0,9.5e-05,3]
[408706546,1774160940125,-10000.0,9.5e-05,3]
[408706547,1774160940481,-10000.0,9.5e-05,3]
[408706548,1774160940916,-10000.0,9.5e-05,3]
[408706549,1774160941257,-300.0,9.499e-05,2]
[408706550,1774160941279,-9700.0,9.5e-05,3]
[408706551,1774160941591,-10000.0,9.5e-05,3]
[408706552,1774160942077,-10000.0,9.5e-05,3]
[408706553,1774160942470,-10000.0,9.5e-05,3]
[408706554,1774160942808,-10000.0,9.5e-05,3]
[408706555,1774160943249,-10000.0,9.5e-05,3]
[408706556,1774160943555,-10000.0,9.5e-05,3]
[408706557,1774160943928,-10000.0,9.5e-05,3]
[408706558,1774160944255,-10000.0,9.5e-05,3]
[408706559,1774160944619,-10000.0,9.5e-05,3]
[408706560,1774160944949,-10000.0,9.5e-05,3]
[408706561,1774160945432,-10000.0,9.5e-05,3]
[408706562,1774160945784,-10000.0,9.5e-05,3]
[408706563,1774160946273,-10000.0,9.5e-05,3]
[408706564,1774160946726,-6054.89648953,9.5e-05,3]
[408706565,1774160946747,-250.0,9.975e-05,2]
[408706566,1774160946767,-420.0,0.00010449,2]
[408706567,1774160946787,-250.0,0.0001045,2]
[408706568,1774160946808,-587.0,0.00011494,2]
[408706569,1774160946828,-2438.10351047,0.000126,2]
[408706570,1774160947082,-733.95581173,0.000126,2]
[408706571,1774160947105,-823.0,0.00012643,2]
[408706572,1774160947127,-8443.04418827,0.000127,2]
[408706573,1774160948665,-168.0,9.5e-05,3]
[408706574,1774160948687,-9832.0,0.000127,2]
[408706575,1774160949598,-10000.0,0.000127,2]
[408706576,1774160959962,-5929.0,0.000127,2]
[408706590,1774161031431,-1200.0,0.00012699,2]
[408706591,1774161031441,-300.0,0.00012699,2]
[408706592,1774161031450,-150.0,0.00012699,2]
[408706593,1774161031460,-250.0,0.000127,2]
[408706594,1774161031470,-644.98701204,0.000127,2]
[408706595,1774161031489,-554.73117238,0.000127,2]
[408706596,1774161031549,-96204.93963475,0.000127,2]
[408706597,1774161031561,-89090.49533753,0.000127,2]
[408706598,1774161031610,-2600.0,0.000127,2]
[408706599,1774161031622,-712.750005,0.000127,2]
[408706600,1774161031671,-528.24124224,0.000127,2]
[408706601,1774161031682,-2018.50212326,0.000127,2]
[408706602,1774161031693,-882.31924771,0.000127,2]
[408706603,1774161031716,-36789.04753327,0.000127,2]
[408706609,1774161037710,-767.54052114,0.000127,2]
[408706645,1774161038106,1600.0,0.00012076,2]
[408706742,1774161040345,-641.3636,0.000127,2]
[408706744,1774161040360,-472204.77471198,0.000127,2]
[408706746,1774161040371,-3900.0,0.000127,4]
[408706749,1774161040383,-600.0,0.000127,4]
[408706751,1774161040394,-288.0,0.000127,2]
[408706753,1774161040406,-287.76635892,0.000127,2]
[408706755,1774161040417,-168.0,0.000127,3]
[408706757,1774161040428,-158.0,0.000127,3]
[408706760,1774161040439,-250.0,0.000127,2]
[408706762,1774161040450,-500.0,0.00012701,2]
[408706764,1774161040462,-500.0,0.00012701,2]
[408706766,1774161040473,-363.32369691,0.00012701,2]
[408706768,1774161040484,-5200.0,0.000128,4]
[408706769,1774161040495,-900.0,0.000128,4]
[408706770,1774161040507,-186.636452,0.00012869,2]
[408706771,1774161040528,-6667.09140541,0.00012875,2]
[408706772,1774161040543,-6763.5247,0.00012876,2]
[408706773,1774161040555,-2500.0,0.00012876,2]
[408706774,1774161040566,-2639.179,0.00012876,2]
[408706775,1774161040577,-174.378,0.00012876,2]
[408706776,1774161040588,-166.42251726,0.00012876,2]
[408706777,1774161040600,-8674.83325282,0.00012876,2]
[408706778,1774161040613,-265.47953164,0.00012876,2]
[408706779,1774161040624,-1148.0,0.00012899,2]
[408706780,1774161040636,-261.18585573,0.000129,2]
[408706781,1774161040646,-6500.0,0.000129,4]
[408706782,1774161040657,-1200.0,0.000129,4]
[408706783,1774161040669,-150.2456,0.000129,2]
[408706784,1774161040681,-161.83,0.00012926,2]
[408706785,1774161040693,-429.72595636,0.00012966,2]
[408706786,1774161040705,-500.0,0.00012967,2]
[408706787,1774161040716,-326.72390358,0.00012967,2]
[408706788,1774161040728,-500.0,0.00012967,2]
[408706789,1774161040740,-500.0,0.00012967,2]
[408706790,1774161040752,-500.0,0.00012967,2]
[408706791,1774161040763,-500.0,0.00012967,2]
[408706792,1774161040774,-500.0,0.00012967,2]
[408706793,1774161040785,-500.0,0.00012967,2]
[408706794,1774161040796,-500.0,0.00012967,2]
[408706795,1774161040807,-444.24913757,0.00012967,2]
[408706796,1774161040819,-500.0,0.00012967,2]
[408706797,1774161040831,-500.0,0.00012967,2]
[408706798,1774161040842,-598.81425327,0.00012967,2]
[408706799,1774161040853,-500.0,0.00012967,2]
[408706800,1774161040864,-200.0,0.00012968,2]
[408706801,1774161040876,-151.0,0.00012968,2]
[408706802,1774161040888,-151.0,0.00012968,2]
[408706803,1774161040900,-151.0,0.00012968,2]
[408706804,1774161040911,-151.0,0.00012968,2]
[408706805,1774161040923,-151.0,0.00012968,2]
[408706806,1774161040935,-151.0,0.00012968,2]
[408706807,1774161040946,-151.0,0.00012968,2]
[408706808,1774161040956,-151.0,0.00012968,2]
[408706809,1774161040965,-151.0,0.00012968,2]
[408706810,1774161041184,-151.0,0.00012968,2]
[408706811,1774161041205,-151.0,0.00012968,2]
[408706812,1774161041216,-151.0,0.00012968,2]
[408706813,1774161041226,-151.0,0.00012968,2]
[408706814,1774161041238,-151.0,0.00012968,2]
[408706815,1774161041247,-151.0,0.00012968,2]
[408706816,1774161041257,-151.0,0.00012968,2]
[408706817,1774161041266,-151.0,0.00012968,2]
[408706818,1774161041278,-151.0,0.00012968,2]
[408706819,1774161041296,-151.0,0.00012968,2]
[408706820,1774161041310,-151.0,0.00012968,2]
[408706821,1774161041322,-151.0,0.00012968,2]
[408706822,1774161041332,-151.0,0.00012968,2]
[408706823,1774161041342,-151.0,0.00012968,2]
[408706824,1774161041352,-151.0,0.00012968,2]
[408706825,1774161041364,-151.0,0.00012968,2]
[408706826,1774161041374,-151.0,0.00012968,2]
[408706827,1774161041384,-151.0,0.00012968,2]
[408706828,1774161041394,-151.0,0.00012968,2]
[408706829,1774161041404,-500.0,0.00012973,2]
[408706830,1774161041414,-500.0,0.00012973,2]
[408706831,1774161041424,-500.0,0.00012973,2]
[408706832,1774161041434,-501.94992362,0.00012973,2]
[408706833,1774161041445,-500.0,0.00012973,2]
[408706834,1774161041455,-574.62700701,0.00012973,2]
[408706835,1774161041464,-501.01870448,0.00012973,2]
[408706836,1774161041475,-500.0,0.00012973,2]
[408706837,1774161041484,-500.0,0.00012975,2]
[408706838,1774161041494,-924.8,0.00012975,2]
[408706839,1774161041503,-739.59292951,0.00012975,2]
[408706840,1774161041513,-739.59292951,0.00012975,2]
[408706841,1774161041523,-739.59292951,0.00012975,2]
[408706842,1774161041532,-739.59292951,0.00012975,2]
[408706843,1774161041542,-739.59292951,0.00012975,2]
[408706844,1774161041551,-739.59292951,0.00012975,2]
[408706845,1774161041561,-739.59292951,0.00012975,2]
[408706846,1774161041570,-739.59292951,0.00012975,2]
[408706847,1774161041579,-739.59292951,0.00012975,2]
[408706848,1774161041589,-739.59292951,0.00012975,2]
[408706849,1774161041599,-739.59292951,0.00012975,2]
[408706850,1774161041608,-739.59292951,0.00012975,2]
[408706851,1774161041618,-739.59292951,0.00012975,2]
[408706852,1774161041628,-739.59292951,0.00012975,2]
[408706853,1774161041637,-739.59292951,0.00012975,2]
[408706854,1774161041647,-739.59292951,0.00012975,2]
[408706855,1774161041657,-739.59292951,0.00012975,2]
[408706856,1774161041668,-739.59292951,0.00012975,2]
[408706857,1774161041678,-739.59292951,0.00012975,2]
[408706858,1774161041687,-739.59292951,0.00012975,2]
[408706859,1774161041699,-739.59292951,0.00012975,2]
[408706860,1774161041710,-739.59292951,0.00012975,2]
[408706861,1774161041723,-739.59292951,0.00012975,2]
[408706862,1774161041732,-739.59292951,0.00012975,2]
[408706863,1774161041742,-739.59292951,0.00012975,2]
[408706864,1774161041752,-739.59292951,0.00012975,2]
[408706865,1774161041762,-739.59292951,0.00012975,2]
[408706866,1774161041775,-739.59292951,0.00012975,2]
[408706867,1774161041785,-739.59292951,0.00012975,2]
[408706868,1774161041797,-739.59292951,0.00012975,2]
[408706869,1774161041810,-739.59292951,0.00012975,2]
[408706870,1774161041821,-739.59292951,0.00012975,2]
[408706871,1774161041832,-739.59292951,0.00012975,2]
[408706872,1774161041842,-739.59292951,0.00012975,2]
[408706873,1774161041854,-739.59292951,0.00012975,2]
[408706874,1774161041864,-739.59292951,0.00012975,2]
[408706875,1774161041875,-739.59292951,0.00012975,2]
[408706876,1774161041886,-739.59292951,0.00012975,2]
[408706877,1774161041897,-739.59292951,0.00012975,2]
[408706878,1774161041909,-739.59292951,0.00012975,2]
[408706879,1774161041918,-739.59292951,0.00012975,2]
[408706880,1774161041929,-739.59292951,0.00012975,2]
[408706881,1774161041940,-739.59292951,0.00012975,2]
[408706882,1774161041951,-739.59292951,0.00012975,2]
[408706883,1774161041961,-739.59292951,0.00012975,2]
[408706884,1774161041975,-739.59292951,0.00012975,2]
[408706885,1774161041992,-739.59292951,0.00012975,2]
[408706886,1774161042003,-739.59292951,0.00012975,2]
[408706887,1774161042015,-739.59292951,0.00012975,2]
[408706888,1774161042025,-739.59292951,0.00012975,2]
[408706889,1774161042039,-739.59292951,0.00012975,2]
[408706890,1774161042049,-739.59292951,0.00012975,2]
[408706891,1774161042059,-739.59292951,0.00012975,2]
[408706892,1774161042070,-739.59292951,0.00012975,2]
[408706893,1774161042080,-739.59292951,0.00012975,2]
[408706894,1774161042089,-739.59292951,0.00012975,2]
[408706895,1774161042100,-739.59292951,0.00012975,2]
[408706896,1774161042110,-739.59292951,0.00012975,2]
[408706897,1774161042120,-739.59292951,0.00012975,2]
[408706898,1774161042130,-739.59292951,0.00012975,2]
[408706899,1774161042140,-739.59292951,0.00012975,2]
[408706900,1774161042150,-739.59292951,0.00012975,2]
[408706901,1774161042160,-739.59292951,0.00012975,2]
[408706902,1774161042170,-739.59292951,0.00012975,2]
[408706903,1774161042179,-739.59292951,0.00012975,2]
[408706904,1774161042189,-739.59292951,0.00012975,2]
[408706905,1774161042199,-739.59292951,0.00012975,2]
[408706906,1774161042208,-739.59292951,0.00012975,2]
[408706907,1774161042218,-739.59292951,0.00012975,2]
[408706908,1774161042227,-739.59292951,0.00012975,2]
[408706909,1774161042241,-739.59292951,0.00012975,2]
[408706910,1774161042250,-739.59292951,0.00012975,2]
[408706911,1774161042260,-739.59292951,0.00012975,2]
[408706912,1774161042271,-739.59292951,0.00012975,2]
[408706913,1774161042280,-739.59292951,0.00012975,2]
[408706914,1774161042291,-739.59292951,0.00012975,2]
[408706915,1774161042301,-739.59292951,0.00012975,2]
[408706916,1774161042311,-739.59292951,0.00012975,2]
[408706917,1774161042321,-739.59292951,0.00012975,2]
[408706918,1774161042330,-739.59292951,0.00012975,2]
[408706919,1774161042340,-739.59292951,0.00012975,2]
[408706920,1774161042350,-739.59292951,0.00012975,2]
[408706921,1774161042359,-739.59292951,0.00012975,2]
[408706922,1774161042369,-739.59292951,0.00012975,2]
[408706923,1774161042379,-739.59292951,0.00012975,2]
[408706924,1774161042389,-739.59292951,0.00012975,2]
[408706925,1774161042403,-739.59292951,0.00012975,2]
[408706926,1774161042413,-739.59292951,0.00012975,2]
[408706927,1774161042423,-989.5929294,0.00012975,2]
[408706928,1774161042433,-989.5929294,0.00012975,2]
[408706929,1774161042443,-500.0,0.00012975,2]
[408706930,1774161042453,-858.39,0.00012975,2]
[408706932,1774161042468,-1500000.0,0.00012976,2]
[408706933,1774161042478,-32984.9071,0.00012976,2]
[408706934,1774161042488,-2381.8674,0.00012976,2]
[408706935,1774161042498,-1000.0,0.00012976,2]
[408706936,1774161042508,-200.0,0.00012976,2]
[408706938,1774161042518,-200.0,0.00012976,2]
[408706939,1774161042528,-200.0,0.00012976,2]
[408706941,1774161042539,-200.0,0.00012976,2]
[408706942,1774161042548,-200.0,0.00012976,2]
[408706943,1774161042558,-200.0,0.00012976,2]
[408706944,1774161042568,-200.0,0.00012976,2]
[408706945,1774161042578,-200.0,0.00012976,2]
[408706947,1774161042588,-200.0,0.00012976,2]
[408706949,1774161042601,-200.0,0.00012976,2]
[408706950,1774161042611,-3172.0593222,0.00013071,2]
[408706951,1774161042621,-500.61388542,0.00013073,2]
[408706952,1774161042630,-500.0,0.00013073,2]
[408706953,1774161042640,-500.0,0.00013073,2]
[408706954,1774161042650,-151.3301257,0.00013073,2]
[408706955,1774161042660,-151.0,0.00013073,2]
[408706956,1774161042670,-155.0,0.00013075,2]
[408706957,1774161042680,-772.58490479,0.0001309,2]
[408706958,1774161042689,-2021.28982699,0.0001309,2]
[408706959,1774161042699,-8674.83325279,0.00013171,2]
[408706960,1774161042709,-470.80340637,0.00013188,2]
[408706961,1774161042718,-858.39,0.00013248,2]
[408706962,1774161042727,-256.86603976,0.00013248,2]
[408706963,1774161042736,-166.42251723,0.0001338,2]
[408706964,1774161042746,-2000.0,0.00013381,2]
[408706965,1774161042756,-3240.0,0.00013425,2]
[408706966,1774161042766,-910.0,0.00013461,2]
[408706967,1774161042775,-8674.83325279,0.00013466,2]
[408706968,1774161042784,-237.6846,0.000135,2]
[408706969,1774161042794,-200.0,0.00013516,2]
[408706970,1774161042804,-879.18468401,0.00013521,2]
[408706971,1774161042813,-1004.04980998,0.00013521,2]
[408706972,1774161042823,-501.09015943,0.00013521,2]
[408706973,1774161042833,-273.30088535,0.00013521,2]
[408706974,1774161042843,-858.39,0.00013522,2]
[408706975,1774161042853,-3172.0593222,0.00013543,2]
[408706976,1774161042863,-1600.0,0.00013586,2]
[408706977,1774161042872,-530.6,0.0001359,2]
[408706978,1774161042882,-161.83,0.00013607,2]
[408706979,1774161042892,-502.62691089,0.00013621,2]
[408706980,1774161042902,-1000.0,0.00013621,2]
[408706981,1774161042911,-6646.38431002,0.00013655,2]
[408706982,1774161042921,-500.0,0.00013655,2]
[408706983,1774161042931,-500.0,0.00013655,2]
[408706984,1774161042941,-500.0,0.00013655,2]
[408706985,1774161042951,-250.0,0.00013655,2]
[408706986,1774161042960,-500.0,0.00013655,2]
[408706987,1774161042970,-395.54834331,0.00013655,2]
[408706988,1774161042980,-500.0,0.00013655,2]
[408706989,1774161042989,-500.0,0.00013655,2]
[408706990,1774161042999,-500.0,0.00013655,2]
[408706991,1774161043008,-500.0,0.00013655,2]
[408706992,1774161043018,-500.0,0.00013655,2]
[408706993,1774161043028,-500.0,0.00013655,2]
[408706994,1774161043038,-500.0,0.00013655,2]
[408706995,1774161043047,-500.0,0.00013655,2]
[408706996,1774161043058,-445.92845333,0.00013655,2]
[408706997,1774161043067,-500.0,0.00013698,2]
[408706998,1774161043076,-511.55627451,0.00013698,2]
[408706999,1774161043086,-500.0,0.00013698,2]
[408707000,1774161043096,-500.0,0.00013698,2]
[408707001,1774161043107,-500.0,0.00013698,2]
[408707002,1774161043117,-500.0,0.00013698,2]
[408707003,1774161043126,-500.0,0.00013698,2]
[408707004,1774161043136,-569.64418973,0.00013698,2]
[408707005,1774161043145,-500.0,0.00013698,2]
[408707006,1774161043155,-500.0,0.00013698,2]
[408707007,1774161043165,-500.0,0.00013698,2]
[408707008,1774161043174,-500.0,0.00013698,2]
[408707009,1774161043184,-500.0,0.00013698,2]
[408707010,1774161043194,-500.0,0.00013698,2]
[408707011,1774161043204,-500.0,0.00013698,2]
[408707012,1774161043213,-338.47316987,0.00013698,2]
[408707013,1774161043223,-500.0,0.00013698,2]